fUST/lending_fUST_20260129
["ID","MTS","AMOUNT","RATE_DAILY","PERIOD"]
[403880973,1769622643274,-301.1433787,0.00030699,4]
[403880974,1769622643283,-1624.671878,0.000307,4]
[403880975,1769622643295,-250.0,0.000307,10]
[403880976,1769622643310,-3120.4801677,0.00030705,2]
[403880977,1769622643320,-206.36876951,0.00030717,10]
[403880978,1769622643331,-151.0,0.00030718,31]
[403880979,1769622643341,-245.0,0.00030718,31]
[403880980,1769622643351,-160.09522763,0.00030718,10]
[403880981,1769622643362,-250.000238,0.00030719,31]
[403880982,1769622643373,-250.000238,0.00030719,31]
[403880983,1769622643383,-250.000238,0.00030719,31]
[403880984,1769622643393,-250.000238,0.00030719,31]
[403880985,1769622643403,-2001489.54441898,0.00030719,30]
[403880986,1769622643418,-3848.21229304,0.00030719,30]
[403880987,1769622643429,-418.90835116,0.00030719,30]
[403880988,1769622643453,-151.0,0.00030668,14]
[403880989,1769622643463,-452.519,0.00030719,30]
[403880999,1769622643717,-305.6755923,0.00030323,30]
[403881000,1769622643733,-264531.53224289,0.00030719,30]
[403881009,1769622646389,-500.0,0.00030719,7]
[403881010,1769622646399,-139.16788215,0.00030719,30]
[403881011,1769622646441,-579.0,0.00030719,30]
[403881030,1769623832359,-430.187,0.00012779,2]
[403881031,1769623832369,-291.82875809,0.00012779,2]
[403881032,1769623832378,-200.89289146,0.00012779,2]
[403881033,1769623832387,-1632.67192659,0.00012866,2]
[403881034,1769623832397,-276.0,0.00012938,2]
[403881035,1769623832406,-300.0,0.00012938,2]
[403881036,1769623832415,-300.0,0.00012938,2]
[403881037,1769623832423,-1200.0,0.00012938,2]
[403881038,1769623832432,-300.0,0.00012939,2]
[403881039,1769623832441,-415.09435867,0.00012939,2]
[403881040,1769623832451,-9703.85148064,0.0001294,2]
[403881089,1769623838492,-1710296.14851936,0.0001294,2]
[403881090,1769623838502,-200.57111926,0.00012966,2]
[403881091,1769623838511,-151.0,0.00013,2]
[403881092,1769623838521,-151.0,0.00013,2]
[403881093,1769623838530,-151.0,0.00013,2]
[403881094,1769623838540,-500.0,0.00013026,2]
[403881096,1769623838549,-500.0,0.00013026,2]
[403881097,1769623838559,-500.0,0.0001304,2]
[403881098,1769623838568,-1184.06,0.0001304,2]
[403881099,1769623838578,-1184.06,0.0001304,2]
[403881100,1769623838589,-1184.06,0.0001304,2]
[403881101,1769623838598,-1184.06,0.0001304,2]
[403881102,1769623838608,-1184.06,0.0001304,2]
[403881103,1769623838617,-1184.06,0.0001304,2]
[403881104,1769623838627,-1184.06,0.0001304,2]
[403881105,1769623838637,-1184.06,0.0001304,2]
[403881106,1769623838647,-1184.06,0.0001304,2]
[403881107,1769623838656,-1184.06,0.0001304,2]
[403881108,1769623838665,-1184.06,0.0001304,2]
[403881109,1769623838675,-1184.06,0.0001304,2]
[403881110,1769623838685,-1184.06,0.0001304,2]
[403881111,1769623838695,-1184.06,0.0001304,2]
[403881112,1769623838704,-1184.06,0.0001304,2]
[403881113,1769623838714,-1184.06,0.0001304,2]
[403881114,1769623838724,-1184.06,0.0001304,2]
[403881115,1769623838733,-1184.06,0.0001304,2]
[403881116,1769623838745,-1184.06,0.0001304,2]
[403881117,1769623838755,-1184.06,0.0001304,2]
[403881118,1769623838765,-1184.06,0.0001304,2]
[403881119,1769623838774,-1184.06,0.0001304,2]
[403881120,1769623838784,-1184.06,0.0001304,2]
[403881121,1769623838794,-1184.06,0.0001304,2]
[403881122,1769623838804,-1184.06,0.0001304,2]
[403881123,1769623838815,-1184.06,0.0001304,2]
[403881124,1769623838824,-1184.06,0.0001304,2]
[403881125,1769623838835,-1184.06,0.0001304,2]
[403881126,1769623838844,-1184.06,0.0001304,2]
[403881127,1769623838854,-1184.06,0.0001304,2]
[403881128,1769623838864,-1184.06,0.0001304,2]
[403881129,1769623838874,-1184.06,0.0001304,2]
[403881130,1769623838883,-1184.06,0.0001304,2]
[403881131,1769623838893,-1184.06,0.0001304,2]
[403881132,1769623838903,-1184.06,0.0001304,2]
[403881133,1769623838912,-2122.8,0.0001304,2]
[403881134,1769623838922,-195.23500925,0.00013103,2]
[403881135,1769623838931,-500.0,0.00013163,2]
[403881136,1769623838941,-500.0,0.00013163,2]
[403881137,1769623838950,-250.0,0.0001324,2]
[403881138,1769623838959,-200.34117545,0.0001324,2]
[403881139,1769623838968,-200.9171616,0.0001324,2]
[403881140,1769623838982,-176.20020011,0.00013273,2]
[403881141,1769623838996,-500.0,0.00013273,2]
[403881142,1769623839006,-500.0,0.00013273,2]
[403881143,1769623839015,-500.0,0.00013273,2]
[403881144,1769623839024,-500.0,0.00013273,2]
[403881145,1769623839036,-500.0,0.00013273,2]
[403881146,1769623839048,-500.0,0.000133,2]
[403881147,1769623839060,-500.0,0.000133,2]
[403881148,1769623839072,-200.0,0.000133,2]
[403881149,1769623839083,-300.0,0.000133,2]
[403881150,1769623839096,-300.0,0.000133,2]
[403881151,1769623839107,-300.0,0.000133,2]
[403881152,1769623839118,-300.0,0.000133,2]
[403881153,1769623839128,-300.0,0.000133,2]
[403881154,1769623839139,-300.0,0.000133,2]
[403881155,1769623839150,-300.0,0.000133,2]
[403881156,1769623839161,-300.0,0.000133,2]
[403881157,1769623839173,-300.0,0.000133,2]
[403881158,1769623839184,-300.0,0.000133,2]
[403881159,1769623839194,-300.0,0.000133,2]
[403881160,1769623839204,-300.0,0.000133,2]
[403881161,1769623839214,-300.0,0.000133,2]
[403881162,1769623839226,-300.0,0.000133,2]
[403881163,1769623839236,-300.0,0.000133,2]
[403881164,1769623839246,-600.0,0.000133,2]
[403881165,1769623839256,-500.0,0.00013314,2]
[403881166,1769623839267,-170.666616,0.00013327,2]
[403881167,1769623839278,-200.0,0.00013377,2]
[403881168,1769623839289,-500.0,0.00013437,2]
[403881169,1769623839301,-500.0,0.00013437,2]
[403881170,1769623839312,-31951.77990198,0.00013548,2]
[403881171,1769623839322,-500.0,0.00013574,2]
[403881172,1769623839333,-500.0,0.00013574,2]
[403881173,1769623839344,-500.0,0.00013588,2]
[403881174,1769623839354,-250.0,0.00013651,2]
[403881175,1769623839364,-300.0,0.00013673,2]
[403881176,1769623839374,-500.0,0.00013698,2]
[403881177,1769623839384,-500.0,0.00013698,2]
[403881178,1769623839394,-231.9426637,0.00013698,2]
[403881179,1769623839404,-493.63025993,0.00013698,2]
[403881180,1769623839414,-500.0,0.00013698,2]
[403881181,1769623839425,-500.0,0.00013698,2]
[403881182,1769623839435,-500.0,0.00013698,2]
[403881183,1769623839446,-500.0,0.00013698,2]
[403881184,1769623839457,-500.0,0.00013698,2]
[403881185,1769623839468,-500.0,0.00013698,2]
[403881186,1769623839479,-500.0,0.00013698,2]
[403881187,1769623839490,-500.0,0.00013698,2]
[403881188,1769623839502,-500.0,0.00013698,2]
[403881189,1769623839512,-500.0,0.00013698,2]
[403881190,1769623839522,-245.05641761,0.00013698,2]
[403881191,1769623839532,-500.0,0.00013698,2]
[403881192,1769623839541,-500.0,0.00013698,2]
[403881193,1769623839552,-500.0,0.00013698,2]
[403881194,1769623839563,-500.0,0.00013698,2]
[403881195,1769623839573,-500.0,0.00013698,2]
[403881196,1769623839585,-500.0,0.00013698,2]
[403881197,1769623839595,-500.0,0.00013698,2]
[403881198,1769623839606,-500.0,0.00013698,2]
[403881199,1769623839616,-500.0,0.00013698,2]
[403881200,1769623839627,-500.0,0.00013698,2]
[403881201,1769623839637,-500.0,0.00013698,2]
[403881202,1769623839648,-500.0,0.00013698,2]
[403881203,1769623839658,-500.0,0.00013698,2]
[403881204,1769623839668,-500.0,0.00013698,2]
[403881205,1769623839679,-179.13377455,0.00013698,2]
[403881206,1769623839690,-500.0,0.00013698,2]
[403881207,1769623839701,-500.0,0.00013698,2]
[403881208,1769623839711,-500.0,0.00013698,2]
[403881209,1769623839722,-500.0,0.00013698,2]
[403881210,1769623839732,-500.0,0.00013698,2]
[403881211,1769623839742,-500.0,0.00013698,2]
[403881212,1769623839753,-500.0,0.00013698,2]
[403881213,1769623839763,-500.0,0.00013698,2]
[403881214,1769623839773,-500.0,0.00013698,2]
[403881215,1769623839784,-321.00935932,0.00013698,2]
[403881216,1769623839794,-500.0,0.00013698,2]
[403881217,1769623839804,-500.0,0.00013698,2]
[403881218,1769623839814,-500.0,0.00013698,2]
[403881219,1769623839823,-199.72375222,0.00013698,2]
[403881220,1769623839834,-411.308015,0.00013699,2]
[403881221,1769623839843,-1000.0,0.00013699,2]
[403881222,1769623839853,-445.1362178,0.00013699,2]
[403881223,1769623839863,-500.0,0.00013699,2]
[403881224,1769623839874,-500.0,0.00013699,2]
[403881225,1769623839885,-500.0,0.00013699,2]
[403881226,1769623839895,-500.0,0.00013699,2]
[403881227,1769623839906,-500.0,0.00013699,2]
[403881228,1769623839917,-500.0,0.00013699,2]
[403881229,1769623839926,-500.0,0.00013699,2]
[403881230,1769623839936,-500.0,0.00013699,2]
[403881231,1769623839946,-500.0,0.00013699,2]
[403881232,1769623839956,-500.0,0.00013699,2]
[403881233,1769623839966,-213.84661778,0.00013699,2]
[403881234,1769623839976,-443.49274844,0.00013699,2]
[403881235,1769623839987,-500.0,0.00013699,2]
[403881236,1769623840000,-500.0,0.00013699,2]
[403881237,1769623840011,-260.16839164,0.00013699,2]
[403881238,1769623840021,-500.0,0.00013699,2]
[403881239,1769623840033,-320.04248703,0.00013699,2]
[403881240,1769623840044,-506.10991888,0.00013699,2]
[403881241,1769623840055,-500.0,0.00013699,2]
[403881243,1769623840068,-500.0,0.00013699,2]
[403881244,1769623840079,-501.77042598,0.00013699,2]
[403881245,1769623840090,-500.0,0.00013699,2]
[403881246,1769623840100,-500.0,0.00013699,2]
[403881247,1769623840110,-500.0,0.00013699,2]
[403881248,1769623840120,-500.0,0.00013699,2]
[403881249,1769623840130,-500.0,0.00013699,2]
[403881250,1769623840140,-500.0,0.00013699,2]
[403881251,1769623840150,-500.0,0.00013699,2]
[403881252,1769623840160,-500.0,0.00013699,2]
[403881253,1769623840170,-500.0,0.00013699,2]
[403881254,1769623840180,-500.0,0.00013699,2]
[403881255,1769623840191,-500.0,0.00013699,2]
[403881256,1769623840201,-500.41621604,0.00013699,2]
[403881257,1769623840211,-500.0,0.00013699,2]
[403881258,1769623840221,-500.0,0.00013699,2]
[403881261,1769623840232,-532.28183888,0.00013699,2]
[403881262,1769623840242,-500.0,0.00013699,2]
[403881263,1769623840252,-500.0,0.00013699,2]
[403881264,1769623840262,-500.0,0.00013699,2]
[403881265,1769623840273,-501.93478625,0.00013699,2]
[403881267,1769623840283,-500.0,0.00013711,2]
[403881268,1769623840293,-500.0,0.00013711,2]
[403881269,1769623840302,-1000.0,0.00013821,2]
[403881270,1769623840312,-1000.0,0.00013821,2]
[403881271,1769623840321,-1000.0,0.00013821,2]
[403881272,1769623840331,-1000.0,0.00013821,2]
[403881273,1769623840341,-1000.0,0.00013821,2]
[403881274,1769623840351,-155.68029,0.00013848,2]
[403881275,1769623840362,-500.0,0.00013848,2]
[403881276,1769623840371,-431.36548199,0.00013862,2]
[403881277,1769623840381,-163.24821694,0.00013985,2]
[403881278,1769623840391,-2736.94264847,0.00014,2]
[403881279,1769623840401,-100000.0,0.00014006,2]
[403881280,1769623840411,-420.0,0.0001419,2]
[403881281,1769623840421,-314.0,0.0001419,2]
[403881282,1769623840431,-600.0,0.00014221,2]
[403881284,1769623840442,-171.04650347,0.00014221,2]
[403881285,1769623840452,-1680.0,0.00014232,2]
[403881286,1769623840462,-159.31465189,0.00014247,2]
[403881287,1769623840472,-250.0,0.00014247,2]
[403881288,1769623840482,-509.85507396,0.00014247,2]
[403881289,1769623840492,-502.14214416,0.00014247,2]
[403881290,1769623840502,-1003.36640104,0.00014247,2]
[403881291,1769623840512,-928.72037754,0.00014247,2]
[403881292,1769623840521,-172.30391573,0.00014247,2]
[403881293,1769623840531,-653.67992137,0.00014247,2]
[403881294,1769623840542,-800.60461598,0.00014247,2]
[403881295,1769623840552,-1000.0,0.00014247,2]
[403881296,1769623840562,-1146.16076302,0.00014247,2]
[403881297,1769623840572,-175.49146446,0.00014247,2]
[403881298,1769623840582,-626.86038304,0.00014247,2]
[403881299,1769623840592,-501.75253763,0.00014247,2]
[403881302,1769623840602,-898.31661661,0.00014247,2]
[403881303,1769623840612,-378.71570647,0.00014247,2]
[403881304,1769623840622,-653.47281249,0.00014247,2]
[403881305,1769623840632,-1000.0,0.00014247,2]
[403881306,1769623840642,-1000.0,0.00014247,2]
[403881307,1769623840652,-508.49522103,0.00014247,2]
[403881308,1769623840662,-1002.16076125,0.00014247,2]
[403881309,1769623840672,-1000.0,0.00014247,2]
[403881310,1769623840683,-1001.40716094,0.00014247,2]
[403881311,1769623840692,-505.03835844,0.00014247,2]
[403881312,1769623840702,-501.48666107,0.00014247,2]
[403881313,1769623840713,-501.67094293,0.00014247,2]
[403881314,1769623840723,-1000.0,0.00014247,2]
[403881315,1769623840733,-722.3651231,0.00014247,2]
[403881316,1769623840743,-1000.0,0.00014247,2]
[403881318,1769623840753,-1000.0,0.00014247,2]
[403881320,1769623840763,-1134.23032778,0.00014247,2]
[403881321,1769623840773,-467.73246011,0.00014293,2]
[403881322,1769623840783,-1500.0,0.00014368,2]
[403881323,1769623840792,-1500.0,0.00014368,2]
[403881324,1769623841010,-1500.0,0.00014368,2]
[403881325,1769623841024,-1500.0,0.00014368,2]
[403881326,1769623841035,-1500.0,0.00014368,2]
[403881327,1769623841044,-720.0,0.0001463,2]
[403881328,1769623841053,-170.666616,0.0001473,2]
[403881329,1769623841064,-900.0,0.00014768,2]
[403881330,1769623841073,-344.35793455,0.00014779,2]
[403881331,1769623841082,-300.0,0.00014795,2]
[403881332,1769623841091,-500.0,0.00014795,2]
[403881333,1769623841101,-500.68775555,0.00014795,2]
[403881334,1769623841110,-526.28781016,0.00014795,2]
[403881335,1769623841120,-1500.0,0.00014795,2]
[403881336,1769623841129,-500.0,0.00014795,2]
[403881337,1769623841138,-1196.49020811,0.00014795,2]
[403881338,1769623841147,-500.0,0.00014795,2]
[403881339,1769623841157,-295.51234803,0.00014916,2]
[403881340,1769623841166,-2000.0,0.00014916,2]
[403881341,1769623841175,-2000.0,0.00014916,2]
[403881342,1769623841185,-2000.0,0.00014916,2]
[403881343,1769623841194,-2000.0,0.00014916,2]
[403881344,1769623841204,-993.63223956,0.00015316,2]
[403881345,1769623841213,-2000.0,0.00015342,2]
[403881346,1769623841223,-1355.419529,0.00015464,2]
[403881347,1769623841232,-2500.0,0.00015464,2]
[403881348,1769623841241,-2500.0,0.00015464,2]
[403881349,1769623841251,-2500.0,0.00015464,2]
[403881350,1769623841260,-587.0,0.00015562,2]
[403881351,1769623841269,-2351.0,0.00015655,2]
[403881352,1769623841279,-2500.0,0.0001589,2]
[403881353,1769623841288,-3000.0,0.00016,2]
[403881354,1769623841297,-3000.0,0.0001601,2]
[403881355,1769623841307,-3000.0,0.00016012,2]
[403881356,1769623841317,-3074.12268118,0.00016012,2]
[403881357,1769623841326,-2504.19700684,0.00016012,2]
[403881358,1769623841334,-3000.0,0.0001602,2]
[403881359,1769623841343,-3000.0,0.0001603,2]
[403881360,1769623841352,-3000.0,0.0001604,2]
[403881361,1769623841361,-4440.65683,0.0001605,2]
[403881362,1769623841370,-864.0,0.00016093,2]
[403881363,1769623841379,-170.666616,0.00016132,2]
[403881364,1769623841388,-200.0,0.00016438,2]
[403881365,1769623841397,-500.0,0.00016438,2]
[403881366,1769623841406,-243.26900401,0.00016438,2]
[403881367,1769623841415,-150.42150351,0.00016438,2]
[403881368,1769623841424,-164.57351573,0.00016438,2]
[403881369,1769623841433,-3000.0,0.00016438,2]
[403881370,1769623841443,-200.0,0.00016473,2]
[403881371,1769623841453,-3500.0,0.0001656,2]
[403881372,1769623841462,-170.0,0.00016685,3]
[403881373,1769623841471,-396.88711101,0.00016779,2]
[403881374,1769623841481,-3500.0,0.00016986,2]
[403881375,1769623841490,-823.0,0.00017068,2]
[403881376,1769623841500,-3500.0,0.00017108,2]
[403881377,1769623841509,-160.0,0.0001712,2]
[403881378,1769623841520,-1041.66666667,0.0001712,2]
[403881379,1769623841529,-729.0,0.0001722,2]
[403881380,1769623841538,-4000.0,0.00017534,2]
[403881381,1769623841547,-1000.0,0.00017702,2]
[403881382,1769623841557,-150.12313849,0.00017808,2]
[403881383,1769623841566,-281.81382901,0.00017842,2]
[403881384,1769623841576,-4512.54102297,0.00018082,2]
[403881385,1769623841585,-1152.0,0.00018719,2]
[403881386,1769623841594,-449.41628746,0.00018779,2]
[403881387,1769623841603,-1000.0,0.00019472,2]
[403881388,1769623841612,-244.0,0.00019472,2]
[403881389,1769623841622,-175.69,0.000195,2]
[403881390,1769623841631,-1381.6,0.000195,2]
[403881391,1769623841640,-6133.44,0.000195,2]
[403881392,1769623841650,-1613.0,0.00020529,2]
[403881393,1769623841659,-411.308015,0.00020548,2]
[403881394,1769623841668,-501.94546392,0.00020779,2]
[403881395,1769623841677,-3000.0,0.00021,2]
[403881396,1769623841686,-3000.0,0.0002101,2]
[403881397,1769623841695,-3000.0,0.0002102,2]
[403881398,1769623841704,-3000.0,0.0002103,2]
[403881399,1769623841714,-3000.0,0.0002104,2]
[403881400,1769623841723,-3000.0,0.0002105,2]
[403881401,1769623841732,-3000.0,0.0002106,2]
[403881402,1769623841741,-3000.0,0.0002107,2]
[403881403,1769623841751,-3000.0,0.0002108,2]
[403881404,1769623841760,-3000.0,0.0002109,2]
[403881405,1769623841769,-3000.0,0.000211,2]
[403881406,1769623841778,-3000.0,0.0002111,2]
[403881407,1769623841787,-3000.0,0.0002112,2]
[403881408,1769623841796,-3000.0,0.0002113,2]
[403881409,1769623841805,-3000.0,0.0002114,2]
[403881410,1769623841814,-3000.0,0.0002115,2]
[403881411,1769623841823,-3000.0,0.0002116,2]
[403881412,1769623841832,-3000.0,0.0002117,2]
[403881413,1769623841841,-3000.0,0.0002118,2]
[403881414,1769623841850,-3000.0,0.0002119,2]
[403881415,1769623841859,-3000.0,0.000212,2]
[403881416,1769623841868,-3000.0,0.0002121,2]
[403881417,1769623841877,-3000.0,0.0002122,2]
[403881418,1769623841887,-3000.0,0.0002123,2]
[403881419,1769623841896,-3000.0,0.0002124,2]
[403881420,1769623841905,-3000.0,0.0002125,2]
[403881421,1769623841914,-3000.0,0.0002126,2]
[403881422,1769623841924,-3000.0,0.0002127,2]
[403881423,1769623841933,-3000.0,0.0002128,2]
[403881424,1769623841942,-3000.0,0.0002129,2]
[403881425,1769623841951,-3000.0,0.000213,2]
[403881426,1769623841960,-3000.0,0.0002131,2]
[403881427,1769623841969,-3000.0,0.0002132,2]
[403881428,1769623841979,-3000.0,0.0002133,2]
[403881429,1769623841992,-3000.0,0.0002134,2]
[403881430,1769623842004,-3000.0,0.0002135,2]
[403881431,1769623842014,-3000.0,0.0002136,2]
[403881432,1769623842026,-3000.0,0.0002137,2]
[403881433,1769623842036,-3000.0,0.0002138,2]
[403881434,1769623842046,-3000.0,0.0002139,2]
[403881435,1769623842056,-3000.0,0.000214,2]
[403881436,1769623842069,-3000.0,0.0002141,2]
[403881437,1769623842078,-1000.0,0.00021419,10]
[403881438,1769623842087,-492.0,0.00021419,10]
[403881439,1769623842098,-3000.0,0.0002142,2]
[403881440,1769623842107,-4559.34317,0.0002143,2]
[403881441,1769623842117,-500.0,0.00022419,2]
[403881442,1769623842127,-974.0,0.00022515,2]
[403881443,1769623842136,-293.17,0.000226,7]
[403881444,1769623842145,-554.47464038,0.00022779,2]
[403881445,1769623842156,-1000.0,0.00023561,10]
[403881446,1769623842165,-791.0,0.00023561,10]
[403881447,1769623842175,-184.01,0.000236,2]
[403881448,1769623842184,-607.00381683,0.00024779,2]
[403881449,1769623842194,-610879.379074,0.000249,2]
[403881450,1769623842203,-276.13,0.00024932,2]
[403881451,1769623842213,-6133.44,0.000251,2]
[403881452,1769623842222,-1381.6,0.000253,14]
[403881453,1769623842231,-1000.0,0.00025918,10]
[403881454,1769623842241,-1000.0,0.00025918,10]
[403881455,1769623842250,-159.0,0.00026,18]
[403881456,1769623842260,-659.53299329,0.00026779,2]
[403881457,1769623842270,-167.0,0.00027,7]
[403881458,1769623842280,-293.17,0.000271,7]
[403881459,1769623842289,-190.69263435,0.0002736,5]
[403881460,1769623842299,-2150.0,0.00027362,2]
[403881461,1769623842308,-1369.0,0.00027362,2]
[403881462,1769623842317,-418.0,0.00027362,2]
[403881463,1769623842327,-418.0,0.00027362,2]
[403881464,1769623842336,-157.1173049,0.00027397,2]
[403881465,1769623842345,-796.4997201,0.00027708,2]
[403881466,1769623842354,-250.0,0.00027945,5]
[403881467,1769623842363,-1071.528267,0.000282,4]
[403881468,1769623842373,-190.69263435,0.00028206,5]
[403881469,1769623842382,-803.5002799,0.00028284,2]
[403881470,1769623842391,-160.0,0.0002838,3]
[403881471,1769623842401,-800.0,0.00028478,2]
[403881472,1769623842410,-350.0,0.00028493,5]
[403881473,1769623842420,-1000.0,0.00028509,30]
[403881474,1769623842429,-1000.0,0.00028509,30]
[403881475,1769623842438,-579.0,0.00028509,30]
[403881476,1769623842448,-13994.6,0.00028623,6]
[403881477,1769623842457,-800.0,0.0002864,2]
[403881478,1769623842466,-6133.44,0.000287,2]
[403881479,1769623842475,-1000.0,0.000287,4]
[403881480,1769623842484,-712.06216975,0.00028779,2]
[403881481,1769623842493,-5000.0,0.00028923,18]
[403881482,1769623842502,-450.0,0.00029041,5]
[403881483,1769623842512,-168.0,0.00029064,2]
[403881484,1769623842521,-4246.65524428,0.00029084,2]
[403881485,1769623842531,-1957.856,0.00029084,2]
[403881486,1769623842540,-161.0,0.0002912,3]
[403881487,1769623842550,-2030.296672,0.00029139,2]
[403881488,1769623842559,-2105.41764886,0.00029194,2]
[403881489,1769623842568,-1000.0,0.000292,4]
[403881490,1769623842578,-8604.43,0.00029224,6]
[403881491,1769623842587,-2183.31810187,0.00029249,2]
[403881492,1769623842597,-168.0,0.00029294,2]
[403881493,1769623842606,-293.17,0.000293,7]
[403881494,1769623842615,-2264.10087164,0.00029304,2]
[403881495,1769623842625,-2347.87260389,0.00029359,2]
[403881496,1769623842634,-2434.74389024,0.00029414,2]
[403881497,1769623842643,-400.0,0.0002943,3]
[403881498,1769623842652,-800.0,0.00029454,2]
[403881499,1769623842662,-2524.82941417,0.00029469,2]
[403881500,1769623842672,-2618.2481025,0.00029524,2]
[403881501,1769623842681,-2715.12328229,0.00029579,2]
[403881502,1769623842690,-550.0,0.00029589,5]
[403881503,1769623842699,-2460.09987822,0.00029634,2]
[403881504,1769623842709,-1000.0,0.000297,4]
[403881505,1769623842719,-500.0,0.00029704,7]
[403881506,1769623842729,-168.0,0.00029779,2]
[403881507,1769623842738,-1043.65606314,0.00029784,2]
[403881508,1769623842748,-1381.6,0.000298,14]
[403881509,1769623842757,-40387.88,0.00029827,6]
[403881510,1769623842766,-168.0,0.00029992,2]
[403881511,1769623842775,-1000.0,0.0003,14]
[403881512,1769623842785,-11841.96810216,0.0003,12]
[403881513,1769623842794,-190.0,0.0003,14]
[403881514,1769623842803,-1000.0,0.0003,14]
[403881515,1769623842812,-178.5494496,0.0003,14]
[403881516,1769623842822,-151.0,0.0003,14]
[403881517,1769623842831,-1000.0,0.00030042,14]
[403881518,1769623842840,-400.0,0.00030057,3]
[403881519,1769623842850,-151.0,0.00030065,14]
[403881520,1769623842859,-1000.0,0.00030085,14]
[403881521,1769623842868,-1000.0,0.00030127,14]
[403881522,1769623842877,-151.0,0.00030131,14]
[403881523,1769623842886,-175.20269643,0.00030137,2]
[403881524,1769623842896,-650.0,0.00030137,5]
[403881525,1769623842905,-1000.0,0.00030169,14]
[403881526,1769623842914,-498.87237987,0.00030178,2]
[403881527,1769623842924,-1995.4895195,0.00030178,2]
[403881528,1769623842933,-4489.85141887,0.00030178,2]
[403881529,1769623842942,-375.70984768,0.00030178,2]
[403881530,1769623842951,-1502.83939074,0.00030178,2]
[403881531,1769623842961,-3381.38862916,0.00030178,2]
[403881532,1769623842970,-6011.35756295,0.00030178,2]
[403881533,1769623842979,-9392.74619211,0.00030178,2]
[403881534,1769623842989,-151.0,0.00030196,14]
[403881535,1769623843002,-1000.0,0.000302,4]
[403881536,1769623843011,-1000.0,0.00030211,14]
[403881537,1769623843021,-1000.0,0.0003024,14]
[403881538,1769623843033,-1000.0,0.00030254,14]
[403881539,1769623843042,-151.0,0.00030261,14]
[403881540,1769623843052,-1000.0,0.00030296,14]
[403881541,1769623843063,-168.0,0.00030298,2]
[403881542,1769623843073,-175.69,0.000303,7]
[403881543,1769623843083,-305.6755923,0.00030323,30]
[403881544,1769623843092,-305.6755923,0.00030323,30]
[403881545,1769623843101,-305.6755923,0.00030323,30]
[403881546,1769623843111,-305.6755923,0.00030323,30]
[403881547,1769623843120,-151.0,0.00030327,14]
[403881548,1769623843130,-1000.0,0.00030338,14]
[403881549,1769623843139,-2150.0,0.00030362,2]
[403881550,1769623843149,-1369.0,0.00030362,2]
[403881551,1769623843158,-418.0,0.00030362,2]
[403881552,1769623843167,-418.0,0.00030362,2]
[403881553,1769623843177,-1000.0,0.00030381,14]
[403881554,1769623843186,-151.0,0.00030392,14]
[403881555,1769623843195,-153.0,0.00030409,30]
[403881556,1769623843205,-190.0,0.00030411,14]
[403881557,1769623843214,-1000.0,0.00030423,14]
[403881558,1769623843224,-73017.81,0.00030438,6]
[403881559,1769623843235,-3041.1677521,0.00030452,7]
[403881560,1769623843244,-6835.78481478,0.00030452,7]
[403881561,1769623843254,-3426.4554867,0.00030452,7]
[403881562,1769623843263,-151.0,0.00030458,14]
[403881563,1769623843273,-1000.0,0.00030465,14]
[403881564,1769623843282,-1000.0,0.00030479,14]
[403881565,1769623843292,-6133.44,0.000305,2]